fUSD/lending_fUSD_20260529
["ID","MTS","AMOUNT","RATE_DAILY","PERIOD"]
[423358107,1780066919000,-500.0,0.00035606,120]
[423358108,1780066919000,-500.0,0.00035606,120]
[423358101,1780066919000,-265.625,0.00035606,120]
[423358102,1780066919000,-500.0,0.00035606,120]
[423358106,1780066919000,-500.0,0.00035606,120]
[423358104,1780066919000,-500.0,0.00035606,120]
[423358103,1780066919000,-500.0,0.00035606,120]
[423358098,1780066919000,-800.0,0.00035606,120]
[423358099,1780066919000,-1402.0952264,0.00035606,120]
[423358100,1780066919000,-250.35,0.00035606,120]
[423358116,1780066919000,-1600.0,0.00035606,120]
[423358105,1780066919000,-500.0,0.00035606,120]
[423358113,1780066919000,-500.0,0.00035606,120]
[423358126,1780066919000,-1600.0,0.00035606,120]
[423358118,1780066919000,-1600.0,0.00035606,120]
[423358097,1780066919000,-800.0,0.00035606,120]
[423358134,1780066919000,-1600.0,0.00035606,120]
[423358132,1780066919000,-1600.0,0.00035606,120]
[423358133,1780066919000,-1600.0,0.00035606,120]
[423358131,1780066919000,-1600.0,0.00035606,120]
[423358128,1780066919000,-1600.0,0.00035606,120]
[423358129,1780066919000,-1600.0,0.00035606,120]
[423358115,1780066919000,-877.1706186,0.00035606,120]
[423358127,1780066919000,-1600.0,0.00035606,120]
[423358121,1780066919000,-1600.0,0.00035606,120]
[423358124,1780066919000,-1600.0,0.00035606,120]
[423358123,1780066919000,-1600.0,0.00035606,120]
[423358122,1780066919000,-1600.0,0.00035606,120]
[423358120,1780066919000,-1600.0,0.00035606,120]
[423358119,1780066919000,-1600.0,0.00035606,120]
[423358117,1780066919000,-1600.0,0.00035606,120]
[423358125,1780066919000,-1600.0,0.00035606,120]
[423358130,1780066919000,-1600.0,0.00035606,120]
[423358145,1780066920000,-1000.0,0.00035616,120]
[423358147,1780066920000,-1000.0,0.00035616,120]
[423358144,1780066920000,-1000.0,0.00035616,120]
[423358148,1780066920000,-1000.0,0.00035616,120]
[423358146,1780066920000,-1000.0,0.00035616,120]
[423358149,1780066920000,-1000.0,0.00035616,120]
[423358143,1780066920000,-3216.85176161,0.00035616,120]
[423358140,1780066920000,-4230.31099884,0.00035607,30]
[423358141,1780066920000,-607.0,0.00035616,120]
[423358142,1780066920000,-612.0,0.00035616,120]
[423358137,1780066920000,-1600.0,0.00035606,120]
[423358138,1780066920000,-2020.1685859,0.00035606,120]
[423358136,1780066920000,-1600.0,0.00035606,120]
[423358135,1780066920000,-1600.0,0.00035606,120]
[423358151,1780066920000,-1000.0,0.00035616,120]
[423358139,1780066920000,-603.98175668,0.00035607,50]
[423358150,1780066920000,-1000.0,0.00035616,120]
[423358157,1780066920000,-1000.0,0.00035616,120]
[423358152,1780066920000,-1000.0,0.00035616,120]
[423358153,1780066920000,-1000.0,0.00035616,120]
[423358168,1780066920000,-1561.02,0.00035616,30]
[423358165,1780066920000,-1000.0,0.00035616,120]
[423358167,1780066920000,-773.67738435,0.00035616,120]
[423358166,1780066920000,-1000.0,0.00035616,120]
[423358162,1780066920000,-1000.0,0.00035616,120]
[423358164,1780066920000,-1000.0,0.00035616,120]
[423358163,1780066920000,-1000.0,0.00035616,120]
[423358170,1780066920000,-1000.0,0.00035616,120]
[423358160,1780066920000,-1000.0,0.00035616,120]
[423358158,1780066920000,-1000.0,0.00035616,120]
[423358159,1780066920000,-1000.0,0.00035616,120]
[423358169,1780066920000,-1040.68,0.00035616,60]
[423358156,1780066920000,-1000.0,0.00035616,120]
[423358154,1780066920000,-1000.0,0.00035616,120]
[423358155,1780066920000,-1000.0,0.00035616,120]
[423358161,1780066920000,-1000.0,0.00035616,120]
[423358183,1780066921000,-1000.0,0.00035616,120]
[423358179,1780066921000,-1000.0,0.00035616,120]
[423358181,1780066921000,-1000.0,0.00035616,120]
[423358182,1780066921000,-1000.0,0.00035616,120]
[423358180,1780066921000,-1000.0,0.00035616,120]
[423358178,1780066921000,-600.0,0.00035616,120]
[423358173,1780066921000,-1000.0,0.00035616,120]
[423358177,1780066921000,-600.0,0.00035616,120]
[423358176,1780066921000,-600.0,0.00035616,120]
[423358172,1780066921000,-1000.0,0.00035616,120]
[423358174,1780066921000,-600.0,0.00035616,120]
[423358171,1780066921000,-1550.0,0.00035616,30]
[423358184,1780066921000,-1000.0,0.00035616,120]
[423358175,1780066921000,-600.0,0.00035616,120]
[423358186,1780066921000,-1000.0,0.00035616,120]
[423358185,1780066921000,-1000.0,0.00035616,120]
[423358199,1780066921000,-480.0,0.00035776,30]
[423358188,1780066921000,-1000.0,0.00035616,120]
[423358203,1780066921000,-590.0,0.00035796,30]
[423358202,1780066921000,-1255.0,0.00035794,30]
[423358201,1780066921000,-850.0,0.00035794,30]
[423358200,1780066921000,-2000.0,0.0003579,120]
[423358198,1780066921000,-1682.0,0.00035776,30]
[423358197,1780066921000,-287.26,0.000357,60]
[423358196,1780066921000,-957.66,0.00035672,30]
[423358195,1780066921000,-1142.51,0.00035672,30]
[423358193,1780066921000,-2763.4,0.0003567,98]
[423358192,1780066921000,-488.61879521,0.00035667,120]
[423358191,1780066921000,-382.37315286,0.00035643,120]
[423358190,1780066921000,-986.59,0.00035617,30]
[423358189,1780066921000,-163.94,0.00035617,30]
[423358187,1780066921000,-1781.0,0.00035616,30]
[423358194,1780066921000,-960.65,0.00035672,30]
[423358215,1780066922000,-219.33882397,0.00035995,120]
[423358214,1780066922000,-152.0,0.00035974,40]
[423358217,1780066922000,-1533.0,0.00036,120]
[423358220,1780066922000,-3000.0,0.00036,120]
[423358219,1780066922000,-150.0,0.00036,120]
[423358213,1780066922000,-320.75,0.000359,90]
[423358218,1780066922000,-1005.0,0.00036,120]
[423358216,1780066922000,-2500.0,0.00036,37]
[423358204,1780066922000,-800.0,0.00035796,30]
[423358209,1780066922000,-996.73,0.000359,90]
[423358212,1780066922000,-707.23,0.000359,90]
[423358210,1780066922000,-357.2,0.000359,90]
[423358208,1780066922000,-4314.8,0.000359,120]
[423358207,1780066922000,-1550.0,0.0003589,30]
[423358206,1780066922000,-171.08,0.0003586,120]
[423358205,1780066922000,-1000.0,0.000358,30]
[423358211,1780066922000,-2828.89,0.000359,90]
[423358223,1780066922000,-589.77,0.00036,120]
[423358237,1780066922000,-384.52302451,0.00036,120]
[423358221,1780066922000,-2911.31,0.00036,60]
[423358222,1780066922000,-468.36,0.00036,60]
[423358240,1780066922000,-272.42351235,0.00036,120]
[423358238,1780066922000,-662.56675883,0.00036,120]
[423358236,1780066922000,-194.5396885,0.00036,120]
[423358232,1780066922000,-441.13815048,0.00036,120]
[423358235,1780066922000,-243.48097831,0.00036,120]
[423358234,1780066922000,-308.18119661,0.00036,120]
[423358233,1780066922000,-285.69585196,0.00036,120]
[423358239,1780066922000,-342.6474767,0.00036,120]
[423358228,1780066922000,-461.96472536,0.00036,120]
[423358230,1780066922000,-249.77682412,0.00036,120]
[423358229,1780066922000,-346.41297684,0.00036,120]
[423358226,1780066922000,-557.02414741,0.00036,120]
[423358227,1780066922000,-223.45026398,0.00036,120]
[423358224,1780066922000,-1000.0,0.00036,45]
[423358225,1780066922000,-199.0,0.00036,30]
[423358231,1780066922000,-227.42043917,0.00036,120]
[423358254,1780066923000,-1550.0,0.00036164,30]
[423358253,1780066923000,-1418.9,0.00036153,30]
[423358255,1780066923000,-1000.0,0.000362,30]
[423358252,1780066923000,-1284.84983,0.000361,120]
[423358250,1780066923000,-156.03,0.00036044,30]
[423358251,1780066923000,-1178.5,0.00036071,120]
[423358249,1780066923000,-2000.0,0.00036027,30]
[423358246,1780066923000,-3777.21342652,0.00036,120]
[423358247,1780066923000,-1509.43,0.00036,30]
[423358245,1780066923000,-2632.3,0.00036,30]
[423358243,1780066923000,-1475.96411568,0.00036,120]
[423358244,1780066923000,-268.71606169,0.00036,120]
[423358242,1780066923000,-400.95202562,0.00036,120]
[423358241,1780066923000,-910.68754769,0.00036,120]
[423358256,1780066923000,-2763.4,0.0003621,114]
[423358248,1780066923000,-1000.0,0.00036,30]
[423358260,1780066923000,-338.34022495,0.00036458,30]
[423358258,1780066923000,-152.0,0.00036365,41]
[423358276,1780066923000,-1770.0,0.000366,120]
[423358275,1780066923000,-320.75,0.00036576,120]
[423358274,1780066923000,-320.75,0.00036576,120]
[423358272,1780066923000,-514.58,0.00036576,120]
[423358273,1780066923000,-1283.03,0.00036576,120]
[423358271,1780066923000,-321.62,0.00036576,120]
[423358270,1780066923000,-390.09,0.000365,120]
[423358268,1780066923000,-596.66,0.000365,60]
[423358269,1780066923000,-1000.0,0.000365,30]
[423358257,1780066923000,-760.91,0.00036362,60]
[423358265,1780066923000,-500.0,0.000365,30]
[423358266,1780066923000,-1334.32,0.000365,60]
[423358264,1780066923000,-1000.0,0.000365,45]
[423358263,1780066923000,-1866.18,0.000365,120]
[423358261,1780066923000,-158.26229879,0.00036458,30]
[423358262,1780066923000,-2000.0,0.00036493,30]
[423358259,1780066923000,-1550.0,0.00036438,30]
[423358267,1780066923000,-349.56,0.000365,120]
[423358293,1780066924000,-500.0,0.00036822,30]
[423358292,1780066924000,-500.0,0.00036822,30]
[423358291,1780066924000,-500.0,0.00036822,30]
[423358290,1780066924000,-500.0,0.0003681,30]
[423358289,1780066924000,-500.0,0.0003681,30]
[423358287,1780066924000,-415.6,0.00036805,30]
[423358286,1780066924000,-500.0,0.00036805,30]
[423358284,1780066924000,-1000.0,0.000368,30]
[423358288,1780066924000,-500.0,0.0003681,30]
[423358283,1780066924000,-2677.49420931,0.00036789,53]
[423358281,1780066924000,-152.0,0.00036755,42]
[423358282,1780066924000,-2763.4,0.0003676,120]
[423358280,1780066924000,-19016.4218,0.00036736,30]
[423358278,1780066924000,-1500.0,0.000367,120]
[423358294,1780066924000,-500.0,0.00036822,30]
[423358285,1780066924000,-500.0,0.00036805,30]
[423358295,1780066924000,-500.0,0.00036822,30]
[423358277,1780066924000,-368.30440275,0.00036667,30]
[423358297,1780066924000,-252.1,0.00036822,30]
[423358296,1780066924000,-500.0,0.00036822,30]
[423358313,1780066924000,-600.0,0.00036986,120]
[423358312,1780066924000,-1550.0,0.00036986,30]
[423358310,1780066924000,-500.0,0.00036986,120]
[423358311,1780066924000,-500.0,0.00036986,120]
[423358309,1780066924000,-186.76,0.00036986,120]
[423358306,1780066924000,-159.13,0.0003691,120]
[423358308,1780066924000,-2000.0,0.00036932,30]
[423358279,1780066924000,-1550.0,0.00036712,30]
[423358305,1780066924000,-2000.0,0.000369,30]
[423358298,1780066924000,-500.0,0.00036822,30]
[423358299,1780066924000,-500.0,0.00036822,30]
[423358300,1780066924000,-252.1,0.00036822,30]
[423358301,1780066924000,-500.0,0.00036856,30]
[423358307,1780066924000,-171.08,0.00036929,120]
[423358303,1780066924000,-359.79,0.00036856,30]
[423358304,1780066924000,-4314.8,0.000369,120]
[423358302,1780066924000,-500.0,0.00036856,30]
[423358329,1780066925000,-180.0,0.00037,120]
[423358328,1780066925000,-1000.0,0.00037,120]
[423358326,1780066925000,-1800.0,0.00037,120]
[423358327,1780066925000,-1389.503782,0.00037,35]
[423358325,1780066925000,-150.0,0.00037,120]
[423358322,1780066925000,-1457.50288527,0.00037,120]
[423358324,1780066925000,-160.0,0.00037,120]
[423358323,1780066925000,-3201.6795292,0.00037,120]
[423358321,1780066925000,-595.02699286,0.00037,120]
[423358331,1780066925000,-468.36,0.00037,75]
[423358317,1780066925000,-600.0,0.00036986,120]
[423358318,1780066925000,-1000.0,0.00036986,120]
[423358316,1780066925000,-600.0,0.00036986,120]
[423358315,1780066925000,-600.0,0.00036986,120]
[423358314,1780066925000,-600.0,0.00036986,120]
[423358320,1780066925000,-1000.0,0.00036986,120]
[423358319,1780066925000,-1000.0,0.00036986,120]
[423358332,1780066925000,-2500.0,0.00037,38]
[423358333,1780066925000,-200.0,0.00037,120]
[423358347,1780066925000,-1000.0,0.000372,30]
[423358348,1780066925000,-651.99946991,0.000372,120]
[423358330,1780066925000,-2911.31,0.00037,75]
[423358344,1780066925000,-152.0,0.00037146,43]
[423358346,1780066925000,-646.51384912,0.00037185,120]
[423358343,1780066925000,-226.0,0.00037125,120]
[423358342,1780066925000,-226.0,0.00037125,120]
[423358345,1780066925000,-646.51384912,0.00037185,120]
[423358341,1780066925000,-150.0,0.00037125,120]
[423358339,1780066925000,-3777.21342652,0.000371,120]
[423358337,1780066925000,-500.0,0.000371,120]
[423358338,1780066925000,-1475.96411568,0.000371,120]
[423358336,1780066925000,-500.0,0.00037099,120]
[423358334,1780066925000,-2500.0,0.00037,30]
[423358340,1780066925000,-150.0,0.00037125,120]
[423358335,1780066925000,-1000.0,0.00037,30]
[423358358,1780066926000,-2763.4,0.000373,60]
[423358365,1780066926000,-700.0,0.000375,120]
[423358364,1780066926000,-1019.64803438,0.000375,120]
[423358363,1780066926000,-279.43420305,0.000375,120]
[423358362,1780066926000,-1944.51,0.00037412,120]
[423358360,1780066926000,-500.0,0.00037397,120]
[423358361,1780066926000,-516.89,0.00037412,120]
[423358359,1780066926000,-2000.0,0.0003737,30]
[423358369,1780066926000,-966.70644963,0.00037517,120]
[423358356,1780066926000,-247.04,0.00037273,30]
[423358353,1780066926000,-1550.0,0.0003726,30]
[423358354,1780066926000,-1550.0,0.0003726,30]
[423358351,1780066926000,-651.9994699,0.000372,120]
[423358352,1780066926000,-651.9994699,0.000372,120]
[423358350,1780066926000,-651.9994699,0.000372,120]
[423358349,1780066926000,-651.9994699,0.000372,120]
[423358355,1780066926000,-281.0,0.0003726,120]
[423358367,1780066926000,-1000.0,0.000375,45]
[423358357,1780066926000,-1284.84983,0.000373,120]
[423358368,1780066926000,-1000.0,0.000375,30]
[423358387,1780066926000,-374.3,0.00037576,120]
[423358386,1780066926000,-1543.37,0.00037576,120]
[423358385,1780066926000,-218.18,0.00037576,120]
[423358384,1780066926000,-218.18,0.00037576,120]
[423358383,1780066926000,-218.18,0.00037576,120]
[423358382,1780066926000,-872.76,0.00037576,120]
[423358381,1780066926000,-555.89640513,0.00037562,90]
[423358380,1780066926000,-500.0,0.00037562,90]
[423358366,1780066926000,-48165.0,0.000375,30]
[423358377,1780066926000,-500.0,0.00037562,90]
[423358375,1780066926000,-500.0,0.00037562,90]
[423358376,1780066926000,-500.0,0.00037562,90]
[423358374,1780066926000,-121205.14,0.00037561,120]
[423358373,1780066926000,-121350.0,0.0003756,30]
[423358370,1780066926000,-500.0,0.00037534,120]
[423358372,1780066926000,-1550.0,0.00037534,30]
[423358371,1780066926000,-1550.0,0.00037534,30]
[423358379,1780066926000,-500.0,0.00037562,90]
[423358398,1780066927000,-997.5284738,0.00037596,120]
[423358399,1780066927000,-500.0,0.00037596,120]
[423358404,1780066927000,-189.84375,0.00037596,120]
[423358400,1780066927000,-461.332251,0.00037596,120]
[423358403,1780066927000,-500.0,0.00037596,120]
[423358394,1780066927000,-190.4303728,0.00037596,120]
[423358401,1780066927000,-500.0,0.00037596,120]
[423358395,1780066927000,-234.375,0.00037596,120]
[423358390,1780066927000,-328.3,0.00037576,120]
[423358396,1780066927000,-441.3163554,0.00037596,120]
[423358393,1780066927000,-562.4764968,0.00037596,120]
[423358392,1780066927000,-500.0,0.00037596,120]
[423358391,1780066927000,-227.475007,0.00037596,120]
[423358389,1780066927000,-304.89,0.00037576,120]
[423358388,1780066927000,-1219.56,0.00037576,120]
[423358402,1780066927000,-234.375,0.00037596,120]
[423358397,1780066927000,-234.375,0.00037596,120]
[423358405,1780066927000,-234.375,0.00037596,120]
[423358412,1780066927000,-500.0,0.00037596,120]
[423358406,1780066927000,-176.5928061,0.00037596,120]
[423358426,1780066927000,-283.8702568,0.00037596,120]
[423358424,1780066927000,-771.2386767,0.00037596,120]
[423358425,1780066927000,-234.375,0.00037596,120]
[423358423,1780066927000,-234.375,0.00037596,120]
[423358408,1780066927000,-500.0,0.00037596,120]
[423358420,1780066927000,-521.5033166,0.00037596,120]
[423358419,1780066927000,-211.6928584,0.00037596,120]
[423358418,1780066927000,-409.2518492,0.00037596,120]
[423358417,1780066927000,-286.3648914,0.00037596,120]
[423358421,1780066927000,-234.375,0.00037596,120]
[423358413,1780066927000,-261.839659,0.00037596,120]
[423358415,1780066927000,-164.1728783,0.00037596,120]
[423358414,1780066927000,-290.9606005,0.00037596,120]
[423358409,1780066927000,-613.3466976,0.00037596,120]
[423358410,1780066927000,-500.0,0.00037596,120]
[423358411,1780066927000,-500.0,0.00037596,120]
[423358407,1780066927000,-500.0,0.00037596,120]
[423358416,1780066927000,-500.0,0.00037596,120]
[423358434,1780066928000,-761.8973315,0.00037596,120]
[423358432,1780066928000,-500.0,0.00037596,120]
[423358430,1780066928000,-213.8688723,0.00037596,120]
[423358433,1780066928000,-171.8439934,0.00037596,120]
[423358427,1780066928000,-176.6464075,0.00037596,120]
[423358429,1780066928000,-500.0,0.00037596,120]
[423358428,1780066928000,-234.375,0.00037596,120]
[423358437,1780066928000,-500.0,0.00037596,120]
[423358431,1780066928000,-165.4684699,0.00037596,120]
[423358435,1780066928000,-1100.0,0.00037596,120]
[423358439,1780066928000,-500.0,0.00037596,120]
[423358438,1780066928000,-1100.0,0.00037596,120]
[423358436,1780066928000,-216.7956579,0.00037596,120]
[423358448,1780066928000,-500.0,0.00037596,120]
[423358446,1780066928000,-1100.0,0.00037596,120]
[423358444,1780066928000,-500.0,0.00037596,120]
[423358447,1780066928000,-500.0,0.00037596,120]
[423358443,1780066928000,-151.8469274,0.00037596,120]
[423358440,1780066928000,-500.0,0.00037596,120]
[423358441,1780066928000,-1100.0,0.00037596,120]
[423358445,1780066928000,-500.0,0.00037596,120]
[423358442,1780066928000,-500.0,0.00037596,120]
[423358458,1780066929000,-190.905647,0.00037596,120]
[423358464,1780066929000,-234.375,0.00037596,120]
[423358461,1780066929000,-500.0,0.00037596,120]
[423358459,1780066929000,-1100.0,0.00037596,120]
[423358460,1780066929000,-626.8864287,0.00037596,120]
[423358456,1780066929000,-500.0,0.00037596,120]
[423358452,1780066929000,-500.0,0.00037596,120]
[423358454,1780066929000,-1100.0,0.00037596,120]
[423358453,1780066929000,-500.0,0.00037596,120]
[423358455,1780066929000,-500.0,0.00037596,120]
[423358465,1780066929000,-1100.0,0.00037596,120]
[423358451,1780066929000,-500.0,0.00037596,120]
[423358449,1780066929000,-283.9876345,0.00037596,120]
[423358450,1780066929000,-1100.0,0.00037596,120]
[423358457,1780066929000,-500.0,0.00037596,120]
[423358466,1780066929000,-500.0,0.00037596,120]
[423358462,1780066929000,-272.8435228,0.00037596,120]
[423358467,1780066929000,-500.0,0.00037596,120]
[423358463,1780066929000,-500.0,0.00037596,120]
[423358482,1780066929000,-500.0,0.00037596,120]
[423358483,1780066929000,-500.0,0.00037596,120]
[423358481,1780066929000,-1100.0,0.00037596,120]
[423358480,1780066929000,-500.0,0.00037596,120]
[423358478,1780066929000,-1100.0,0.00037596,120]
[423358476,1780066929000,-500.0,0.00037596,120]
[423358477,1780066929000,-500.0,0.00037596,120]
[423358479,1780066929000,-500.0,0.00037596,120]
[423358475,1780066929000,-1100.0,0.00037596,120]
[423358470,1780066929000,-500.0,0.00037596,120]
[423358471,1780066929000,-500.0,0.00037596,120]
[423358473,1780066929000,-500.0,0.00037596,120]
[423358472,1780066929000,-1100.0,0.00037596,120]
[423358469,1780066929000,-1100.0,0.00037596,120]
[423358468,1780066929000,-913.857648,0.00037596,120]
[423358474,1780066929000,-500.0,0.00037596,120]
[423358491,1780066930000,-1100.0,0.00037596,120]
[423358498,1780066930000,-1100.0,0.00037596,120]
[423358495,1780066930000,-1100.0,0.00037596,120]
[423358496,1780066930000,-1100.0,0.00037596,120]
[423358497,1780066930000,-1100.0,0.00037596,120]
[423358493,1780066930000,-1100.0,0.00037596,120]
[423358492,1780066930000,-500.0,0.00037596,120]
[423358485,1780066930000,-500.0,0.00037596,120]
[423358490,1780066930000,-500.0,0.00037596,120]
[423358489,1780066930000,-1100.0,0.00037596,120]
[423358488,1780066930000,-500.0,0.00037596,120]
[423358500,1780066930000,-1100.0,0.00037596,120]
[423358486,1780066930000,-660.0933239,0.00037596,120]
[423358487,1780066930000,-1100.0,0.00037596,120]
[423358484,1780066930000,-1100.0,0.00037596,120]
[423358494,1780066930000,-855.6071359,0.00037596,120]
[423358501,1780066930000,-1100.0,0.00037596,120]
[423358514,1780066930000,-500.0,0.00037596,120]
[423358502,1780066930000,-1100.0,0.00037596,120]
[423358499,1780066930000,-1100.0,0.00037596,120]
[423358519,1780066930000,-800.0,0.00037596,120]
[423358517,1780066930000,-800.0,0.00037596,120]
[423358518,1780066930000,-500.0,0.00037596,120]
[423358516,1780066930000,-500.0,0.00037596,120]
[423358513,1780066930000,-800.0,0.00037596,120]
[423358512,1780066930000,-500.0,0.00037596,120]
[423358510,1780066930000,-500.0,0.00037596,120]
[423358515,1780066930000,-800.0,0.00037596,120]
[423358509,1780066930000,-800.0,0.00037596,120]
[423358507,1780066930000,-800.0,0.00037596,120]
[423358508,1780066930000,-500.0,0.00037596,120]
[423358506,1780066930000,-500.0,0.00037596,120]
[423358503,1780066930000,-1100.0,0.00037596,120]
[423358504,1780066930000,-2166.8172894,0.00037596,120]
[423358505,1780066930000,-800.0,0.00037596,120]
[423358511,1780066930000,-800.0,0.00037596,120]
[423358530,1780066931000,-800.0,0.00037596,120]
[423358536,1780066931000,-500.0,0.00037596,120]
[423358533,1780066931000,-500.0,0.00037596,120]
[423358534,1780066931000,-800.0,0.00037596,120]
[423358532,1780066931000,-800.0,0.00037596,120]
[423358531,1780066931000,-500.0,0.00037596,120]
[423358528,1780066931000,-800.0,0.00037596,120]
[423358520,1780066931000,-800.0,0.00037596,120]
[423358526,1780066931000,-800.0,0.00037596,120]
[423358527,1780066931000,-500.0,0.00037596,120]
[423358525,1780066931000,-500.0,0.00037596,120]
[423358524,1780066931000,-800.0,0.00037596,120]
[423358523,1780066931000,-500.0,0.00037596,120]
[423358521,1780066931000,-500.0,0.00037596,120]
[423358535,1780066931000,-500.0,0.00037596,120]
[423358529,1780066931000,-500.0,0.00037596,120]
[423358537,1780066931000,-800.0,0.00037596,120]
[423358522,1780066931000,-800.0,0.00037596,120]
[423358539,1780066931000,-800.0,0.00037596,120]
[423358553,1780066931000,-800.0,0.00037596,120]
[423358554,1780066931000,-800.0,0.00037596,120]
[423358552,1780066931000,-800.0,0.00037596,120]
[423358550,1780066931000,-515.8444587,0.00037596,120]
[423358551,1780066931000,-800.0,0.00037596,120]
[423358547,1780066931000,-749.0803691,0.00037596,120]
[423358548,1780066931000,-800.0,0.00037596,120]
[423358555,1780066931000,-1402.0952263,0.00037596,120]
[423358545,1780066931000,-800.0,0.00037596,120]
[423358549,1780066931000,-500.0,0.00037596,120]
[423358542,1780066931000,-800.0,0.00037596,120]
[423358540,1780066931000,-500.0,0.00037596,120]
[423358538,1780066931000,-500.0,0.00037596,120]
[423358544,1780066931000,-500.0,0.00037596,120]
[423358546,1780066931000,-500.0,0.00037596,120]
[423358543,1780066931000,-500.0,0.00037596,120]
[423358541,1780066931000,-500.0,0.00037596,120]
[423358569,1780066932000,-1600.0,0.00037596,120]
[423358570,1780066932000,-500.0,0.00037596,120]
[423358567,1780066932000,-500.0,0.00037596,120]
[423358565,1780066932000,-211.4138276,0.00037596,120]
[423358568,1780066932000,-250.35,0.00037596,120]
[423358566,1780066932000,-1600.0,0.00037596,120]
[423358562,1780066932000,-1600.0,0.00037596,120]
[423358563,1780066932000,-1600.0,0.00037596,120]
[423358561,1780066932000,-1600.0,0.00037596,120]
[423358559,1780066932000,-1600.0,0.00037596,120]
[423358558,1780066932000,-1600.0,0.00037596,120]
[423358557,1780066932000,-1600.0,0.00037596,120]
[423358556,1780066932000,-1600.0,0.00037596,120]
[423358571,1780066932000,-500.0,0.00037596,120]
[423358564,1780066932000,-1600.0,0.00037596,120]
[423358560,1780066932000,-1600.0,0.00037596,120]
[423358573,1780066932000,-500.0,0.00037596,120]
[423358574,1780066932000,-1600.0,0.00037596,120]
[423358572,1780066932000,-1600.0,0.00037596,120]
[423358588,1780066932000,-1600.0,0.00037596,120]
[423358587,1780066932000,-1600.0,0.00037596,120]
[423358586,1780066932000,-1600.0,0.00037596,120]
[423358583,1780066932000,-1600.0,0.00037596,120]
[423358584,1780066932000,-1600.0,0.00037596,120]
[423358582,1780066932000,-589.3315971,0.00037596,120]
[423358585,1780066932000,-1600.0,0.00037596,120]
[423358580,1780066932000,-500.0,0.00037596,120]
[423358581,1780066932000,-1600.0,0.00037596,120]
[423358577,1780066932000,-500.0,0.00037596,120]
[423358578,1780066932000,-1600.0,0.00037596,120]
[423358575,1780066932000,-500.0,0.00037596,120]
[423358576,1780066932000,-1600.0,0.00037596,120]
[423358579,1780066932000,-265.625,0.00037596,120]
[423358600,1780066933000,-1209.954,0.000376,120]
[423358602,1780066933000,-263.54451021,0.000376,60]
[423358603,1780066933000,-1507.092,0.000376,120]
[423358601,1780066933000,-1209.95,0.000376,120]
[423358598,1780066933000,-169.6021912,0.00037596,120]
[423358599,1780066933000,-1209.954,0.000376,120]
[423358597,1780066933000,-230.4534095,0.00037596,120]
[423358589,1780066933000,-1600.0,0.00037596,120]
[423358594,1780066933000,-265.625,0.00037596,120]
[423358596,1780066933000,-877.1706186,0.00037596,120]
[423358593,1780066933000,-1600.0,0.00037596,120]
[423358591,1780066933000,-1600.0,0.00037596,120]
[423358590,1780066933000,-1600.0,0.00037596,120]
[423358604,1780066933000,-1507.09,0.000376,120]
[423358595,1780066933000,-500.0,0.00037596,120]